fUST/lending_fUST_20240613
["ID","MTS","AMOUNT","RATE_DAILY","PERIOD"]
[329325811,1718245848873,-500.0,0.00016986,2]
[329325813,1718245848887,-516.68145026,0.00016986,2]
[329325814,1718245848911,-500.0,0.00016986,2]
[329325817,1718245848932,-692.56,0.00016986,2]
[329325819,1718245848954,-512.27274315,0.00016986,2]
[329325820,1718245848967,-500.0,0.00016986,2]
[329325822,1718245849002,-500.0,0.00016986,2]
[329325824,1718245849027,-500.0,0.00016986,2]
[329325825,1718245849049,-500.0,0.00016986,2]
[329325827,1718245849076,-500.0,0.00016986,2]
[329325829,1718245849109,-500.0,0.00016986,2]
[329325831,1718245849128,-972.43,0.00016986,2]
[329325833,1718245849164,-694.9,0.00016986,2]
[329325835,1718245849183,-926.69,0.00016986,2]
[329325836,1718245849199,-500.0,0.00016986,2]
[329325838,1718245849228,-500.0,0.00016986,2]
[329325840,1718245849241,-504.32849719,0.00016986,2]
[329325843,1718245849268,-412.27734649,0.00016986,2]
[329325845,1718245849282,-500.0,0.00016986,2]
[329325847,1718245849297,-500.0,0.00016986,2]
[329325849,1718245849310,-500.0,0.00016986,2]
[329325851,1718245849324,-500.0,0.00016986,2]
[329325852,1718245849343,-500.0,0.00016986,2]
[329325853,1718245849355,-500.0,0.00016986,2]
[329325854,1718245849370,-500.0,0.00016986,2]
[329325855,1718245849383,-500.0,0.00016986,2]
[329325856,1718245849413,-500.0,0.00016986,2]
[329325857,1718245849431,-500.0,0.00016986,2]
[329325858,1718245849451,-500.0,0.00016986,2]
[329325859,1718245849463,-500.0,0.00016986,2]
[329325860,1718245849517,-2179.23,0.00016986,2]
[329325861,1718245849533,-500.0,0.00016986,2]
[329325862,1718245849554,-500.0,0.00016986,2]
[329325864,1718245849584,-500.0,0.00016986,2]
[329325866,1718245849612,-500.0,0.00016986,2]
[329325867,1718245849655,-500.0,0.00016986,2]
[329325869,1718245849699,-500.0,0.00016986,2]
[329325870,1718245849722,-1718.39,0.00016986,2]
[329325871,1718245849759,-822.56,0.00016986,2]
[329325873,1718245849780,-500.0,0.00016986,2]
[329325874,1718245849791,-515.20424275,0.00016986,2]
[329325876,1718245849804,-1160.61,0.00016986,2]
[329325878,1718245849816,-981.58,0.00016986,2]
[329325879,1718245849830,-500.0,0.00016986,2]
[329325880,1718245849846,-1548.65,0.00016986,2]
[329325881,1718245849858,-544.73747256,0.00016986,4]
[329325882,1718245849887,-500.0,0.00016986,2]
[329325883,1718245849918,-329.79625002,0.00016986,2]
[329325884,1718245849937,-500.0,0.00016986,2]
[329325885,1718245849953,-500.0,0.00016986,2]
[329325886,1718245849965,-2473.47,0.00016986,2]
[329325887,1718245849985,-500.0,0.00016986,2]
[329325888,1718245850000,-628.25,0.00016986,2]
[329325889,1718245850011,-2886.59,0.00016986,2]
[329325890,1718245850025,-500.0,0.00016986,2]
[329325891,1718245850052,-500.0,0.00016986,2]
[329325892,1718245850067,-500.0,0.00016986,2]
[329325894,1718245850124,-500.0,0.00016986,2]
[329325896,1718245850150,-500.0,0.00016986,2]
[329325897,1718245850168,-500.0,0.00016986,2]
[329325898,1718245850181,-7479.87,0.00016986,2]
[329325899,1718245850199,-500.0,0.00016986,2]
[329325900,1718245850212,-503.48220934,0.00016986,2]
[329325901,1718245850242,-500.0,0.00016986,2]
[329325902,1718245850267,-462.51768119,0.00016986,2]
[329325903,1718245850298,-500.0,0.00016986,2]
[329325904,1718245850335,-908.59,0.00016986,2]
[329325905,1718245850347,-5026.05,0.00016986,2]
[329325906,1718245850373,-839.14,0.00016986,2]
[329325907,1718245850393,-500.0,0.00016986,2]
[329325908,1718245850410,-500.0,0.00016986,2]
[329325909,1718245850430,-500.0,0.00016986,2]
[329325910,1718245850449,-500.0,0.00016986,2]
[329325911,1718245850472,-500.0,0.00016986,2]
[329325912,1718245850495,-500.0,0.00016986,2]
[329325913,1718245850509,-6873.16,0.00016986,2]
[329325914,1718245850525,-500.0,0.00016986,2]
[329325915,1718245850538,-1965.0,0.00016986,2]
[329325916,1718245850563,-500.0,0.00016986,2]
[329325917,1718245850582,-500.0,0.00016986,2]
[329325918,1718245850594,-1901.3,0.00016986,2]
[329325919,1718245850616,-919.86,0.00016986,2]
[329325920,1718245850638,-824.95,0.00016986,2]
[329325921,1718245850654,-500.0,0.00016986,2]
[329325922,1718245850671,-500.0,0.00016986,2]
[329325923,1718245850684,-500.0,0.00016986,2]
[329325924,1718245850697,-500.0,0.00016986,2]
[329325925,1718245850714,-500.0,0.00016986,2]
[329325926,1718245850726,-500.0,0.00016986,2]
[329325927,1718245850747,-500.0,0.00016986,2]
[329325928,1718245850767,-3378.5,0.00016986,2]
[329325929,1718245850823,-508.92713412,0.00016986,2]
[329325930,1718245850859,-597.49,0.00016986,2]
[329325931,1718245850907,-700.1,0.00016999,2]
[329325932,1718245850936,-700.1,0.00016999,2]
[329325933,1718245850956,-700.1,0.00016999,2]
[329325934,1718245850969,-700.1,0.00016999,2]
[329325935,1718245850983,-174726.13708746,0.00017,2]
[329325936,1718245851002,-1096.18869873,0.00017022,2]
[329325937,1718245851020,-420.0,0.00017065,2]
[329325938,1718245851037,-257.0,0.00017101,2]
[329325939,1718245851050,-257.0,0.00017101,2]
[329325940,1718245851067,-257.0,0.00017101,2]
[329325941,1718245851083,-257.0,0.00017101,2]
[329325942,1718245851135,-257.0,0.00017101,2]
[329325943,1718245851147,-257.0,0.00017101,2]
[329325944,1718245851167,-257.0,0.00017101,2]
[329325945,1718245851188,-257.0,0.00017101,2]
[329325946,1718245851205,-257.0,0.00017101,2]
[329325947,1718245851225,-257.0,0.00017101,2]
[329325948,1718245851237,-257.0,0.00017101,2]
[329325949,1718245851248,-257.0,0.00017101,2]
[329325950,1718245851259,-257.0,0.00017101,2]
[329325951,1718245851275,-257.0,0.00017101,2]
[329325952,1718245851291,-257.0,0.00017101,2]
[329325953,1718245851304,-257.0,0.00017101,2]
[329325954,1718245851318,-257.0,0.00017101,2]
[329325955,1718245851335,-257.0,0.00017101,2]
[329325956,1718245851346,-257.0,0.00017101,2]
[329325957,1718245851360,-257.0,0.00017101,2]
[329325958,1718245851371,-257.0,0.00017101,2]
[329325959,1718245851384,-257.0,0.00017101,2]
[329325960,1718245851405,-257.0,0.00017101,2]
[329325961,1718245851417,-257.0,0.00017101,2]
[329325962,1718245851435,-257.0,0.00017101,2]
[329325963,1718245851454,-257.0,0.00017101,2]
[329325964,1718245851488,-257.0,0.00017101,2]
[329325965,1718245851500,-257.0,0.00017101,2]
[329325966,1718245851511,-257.0,0.00017101,2]
[329325967,1718245851528,-257.0,0.00017101,2]
[329325968,1718245851549,-257.0,0.00017101,2]
[329325969,1718245851580,-257.0,0.00017101,2]
[329325970,1718245851604,-257.0,0.00017101,2]
[329325971,1718245851622,-257.0,0.00017101,2]
[329325972,1718245851660,-257.0,0.00017101,2]
[329325973,1718245851697,-257.0,0.00017101,2]
[329325974,1718245851720,-257.0,0.00017101,2]
[329325975,1718245851731,-257.0,0.00017101,2]
[329325976,1718245851746,-257.0,0.00017101,2]
[329325977,1718245851764,-257.0,0.00017101,2]
[329325978,1718245851776,-257.0,0.00017101,2]
[329325979,1718245851787,-257.0,0.00017101,2]
[329325980,1718245851800,-257.0,0.00017101,2]
[329325981,1718245851813,-257.0,0.00017101,2]
[329325982,1718245851824,-257.0,0.00017101,2]
[329325983,1718245851835,-257.0,0.00017101,2]
[329325984,1718245851848,-257.0,0.00017101,2]
[329325985,1718245851868,-257.0,0.00017101,2]
[329325986,1718245851880,-257.0,0.00017101,2]
[329325987,1718245851893,-257.0,0.00017101,2]
[329325988,1718245851917,-257.0,0.00017101,2]
[329325989,1718245851930,-257.0,0.00017101,2]
[329325990,1718245851941,-257.0,0.00017101,2]
[329325991,1718245851954,-257.0,0.00017101,2]
[329325992,1718245851968,-257.0,0.00017101,2]
[329325993,1718245851982,-257.0,0.00017101,2]
[329325994,1718245852000,-257.0,0.00017101,2]
[329325995,1718245852018,-257.0,0.00017101,2]
[329325996,1718245852030,-257.0,0.00017101,2]
[329325997,1718245852041,-257.0,0.00017101,2]
[329325998,1718245852052,-257.0,0.00017101,2]
[329325999,1718245852064,-257.0,0.00017102,2]
[329326000,1718245852076,-257.0,0.00017102,2]
[329326001,1718245852121,-257.0,0.00017102,2]
[329326002,1718245852136,-257.0,0.00017102,2]
[329326003,1718245852146,-257.0,0.00017102,2]
[329326004,1718245852158,-257.0,0.00017102,2]
[329326005,1718245852169,-257.0,0.00017102,2]
[329326006,1718245852183,-257.0,0.00017102,2]
[329326007,1718245852203,-257.0,0.00017102,2]
[329326008,1718245852215,-257.0,0.00017102,2]
[329326009,1718245852225,-257.0,0.00017102,2]
[329326010,1718245852236,-257.0,0.00017102,2]
[329326011,1718245852252,-257.0,0.00017102,2]
[329326012,1718245852266,-257.0,0.00017102,2]
[329326013,1718245852277,-257.0,0.00017104,2]
[329326014,1718245852296,-257.0,0.00017104,2]
[329326015,1718245852308,-257.0,0.00017104,2]
[329326016,1718245852321,-257.0,0.00017104,2]
[329326017,1718245852332,-257.0,0.00017104,2]
[329326018,1718245852344,-257.0,0.00017104,2]
[329326019,1718245852355,-257.0,0.00017104,2]
[329326020,1718245852367,-257.0,0.00017104,2]
[329326021,1718245852380,-700.1,0.00017258,2]
[329326022,1718245852392,-500.0,0.00017259,2]
[329326023,1718245852406,-700.1,0.00017259,2]
[329326024,1718245852419,-700.1,0.00017259,2]
[329326025,1718245852432,-500.0,0.00017259,2]
[329326026,1718245852444,-593.18830651,0.0001726,2]
[329326027,1718245852456,-500.0,0.0001726,2]
[329326028,1718245852469,-500.0,0.0001726,2]
[329326029,1718245852482,-505.91538372,0.0001726,2]
[329326030,1718245852503,-500.0,0.0001726,2]
[329326031,1718245852520,-503.2340802,0.0001726,2]
[329326032,1718245852648,-500.0,0.0001726,2]
[329326033,1718245852677,-500.0,0.0001726,2]
[329326034,1718245852702,-500.0,0.0001726,2]
[329326035,1718245852713,-481.72424941,0.0001726,2]
[329326036,1718245852734,-500.0,0.0001726,2]
[329326037,1718245852747,-739.29,0.0001726,2]
[329326038,1718245852770,-169.95694796,0.0001726,2]
[329326039,1718245852781,-675.68,0.0001726,2]
[329326040,1718245852797,-500.0,0.0001726,2]
[329326041,1718245852810,-505.28495345,0.0001726,2]
[329326042,1718245852823,-509.08859947,0.0001726,2]
[329326043,1718245852846,-500.0,0.0001726,2]
[329326044,1718245852857,-500.0,0.0001726,2]
[329326045,1718245852872,-500.0,0.0001726,2]
[329326046,1718245852886,-500.0,0.0001726,2]
[329326047,1718245852908,-500.0,0.0001726,2]
[329326048,1718245852920,-500.0,0.0001726,2]
[329326049,1718245852935,-500.0,0.0001726,2]
[329326050,1718245852947,-652.96,0.0001726,2]
[329326051,1718245852960,-500.0,0.0001726,2]
[329326052,1718245852977,-500.0,0.0001726,2]
[329326053,1718245852994,-505.4912827,0.0001726,2]
[329326054,1718245853012,-514.67661298,0.0001726,2]
[329326055,1718245853032,-500.0,0.0001726,2]
[329326056,1718245853044,-500.0,0.0001726,2]
[329326057,1718245853056,-692.56,0.0001726,2]
[329326058,1718245853069,-506.67034706,0.0001726,2]
[329326059,1718245853082,-648.30480686,0.0001726,2]
[329326060,1718245853110,-212.34545381,0.0001726,2]
[329326061,1718245853129,-500.0,0.0001726,2]
[329326062,1718245853144,-500.0,0.0001726,2]
[329326063,1718245853162,-511.40755556,0.0001726,2]
[329326064,1718245853176,-972.43,0.0001726,2]
[329326065,1718245853190,-694.9,0.0001726,2]
[329326066,1718245853203,-926.69,0.0001726,2]
[329326067,1718245853225,-500.0,0.0001726,2]
[329326068,1718245853239,-500.0,0.0001726,2]
[329326069,1718245853251,-500.0,0.0001726,2]
[329326070,1718245853261,-500.0,0.0001726,2]
[329326071,1718245853272,-500.0,0.0001726,2]
[329326072,1718245853282,-500.0,0.0001726,2]
[329326073,1718245853293,-500.0,0.0001726,2]
[329326074,1718245853305,-500.0,0.0001726,2]
[329326075,1718245853317,-2179.23,0.0001726,2]
[329326076,1718245853328,-500.0,0.0001726,2]
[329326077,1718245853339,-509.68507325,0.0001726,2]
[329326078,1718245853349,-500.0,0.0001726,2]
[329326079,1718245853360,-500.0,0.0001726,2]
[329326080,1718245853371,-500.0,0.0001726,2]
[329326081,1718245853382,-1718.39,0.0001726,2]
[329326082,1718245853394,-822.56,0.0001726,2]
[329326083,1718245853405,-500.0,0.0001726,2]
[329326084,1718245853416,-1160.61,0.0001726,2]
[329326085,1718245853427,-981.58,0.0001726,2]
[329326086,1718245853438,-500.0,0.0001726,2]
[329326087,1718245853452,-1548.65,0.0001726,2]
[329326088,1718245853467,-166.29588103,0.0001726,2]
[329326089,1718245853478,-2473.47,0.0001726,2]
[329326090,1718245853491,-628.25,0.0001726,2]
[329326091,1718245853515,-2886.59,0.0001726,2]
[329326092,1718245853539,-500.0,0.0001726,2]
[329326093,1718245853550,-500.0,0.0001726,2]
[329326094,1718245853563,-500.0,0.0001726,2]
[329326095,1718245853574,-500.0,0.0001726,2]
[329326096,1718245853585,-500.0,0.0001726,2]
[329326097,1718245853605,-500.0,0.0001726,2]
[329326098,1718245853617,-7479.87,0.0001726,2]
[329326099,1718245853628,-500.0,0.0001726,2]
[329326100,1718245853639,-500.0,0.0001726,2]
[329326101,1718245853650,-500.0,0.0001726,2]
[329326102,1718245853671,-908.59,0.0001726,2]
[329326103,1718245853683,-5026.05,0.0001726,2]
[329326104,1718245853696,-839.14,0.0001726,2]
[329326105,1718245853707,-500.0,0.0001726,2]
[329326106,1718245853718,-521.64882826,0.0001726,2]
[329326107,1718245853730,-500.0,0.0001726,2]
[329326108,1718245853741,-620.7636615,0.0001726,2]
[329326109,1718245853752,-500.0,0.0001726,2]
[329326110,1718245853763,-6873.16,0.0001726,2]
[329326111,1718245853780,-500.0,0.0001726,2]
[329326112,1718245853793,-1965.0,0.0001726,2]
[329326113,1718245853806,-500.0,0.0001726,2]
[329326114,1718245853817,-522.26329465,0.0001726,2]
[329326115,1718245853827,-1901.3,0.0001726,2]
[329326116,1718245853839,-919.86,0.0001726,2]
[329326117,1718245853850,-824.95,0.0001726,2]
[329326118,1718245853864,-500.0,0.0001726,2]
[329326119,1718245853879,-500.0,0.0001726,2]
[329326120,1718245853895,-231.50127947,0.0001726,2]
[329326121,1718245853910,-500.0,0.0001726,2]
[329326122,1718245853923,-527.95727625,0.0001726,2]
[329326123,1718245853938,-212.9175175,0.0001726,2]
[329326124,1718245853952,-500.0,0.0001726,2]
[329326125,1718245853972,-3378.5,0.0001726,2]
[329326126,1718245853984,-597.49,0.0001726,2]
[329326127,1718245853998,-1096.18869873,0.00017364,2]
[329326128,1718245854016,-700.1,0.00017533,2]
[329326129,1718245854032,-174.26548757,0.00017534,2]
[329326130,1718245854064,-500.27183354,0.00017534,2]
[329326131,1718245854083,-500.0,0.00017534,2]
[329326132,1718245854132,-500.0,0.00017534,2]
[329326133,1718245854143,-739.29,0.00017534,2]
[329326134,1718245854155,-675.68,0.00017534,2]
[329326135,1718245854169,-271.35427463,0.00017534,2]
[329326136,1718245854188,-507.81207865,0.00017534,2]
[329326137,1718245854204,-500.0,0.00017534,2]
[329326138,1718245854225,-500.0,0.00017534,2]
[329326139,1718245854238,-500.0,0.00017534,2]
[329326140,1718245854264,-376.9731272,0.00017534,2]
[329326141,1718245854309,-652.96,0.00017534,2]
[329326142,1718245854365,-500.0,0.00017534,2]
[329326143,1718245854394,-513.09643321,0.00017534,2]
[329326144,1718245854412,-500.0,0.00017534,2]
[329326145,1718245854434,-692.56,0.00017534,2]
[329326146,1718245854450,-500.0,0.00017534,2]
[329326147,1718245854472,-392.36626128,0.00017534,2]
[329326148,1718245854484,-972.43,0.00017534,2]
[329326149,1718245854495,-694.9,0.00017534,2]
[329326150,1718245854514,-926.69,0.00017534,2]
[329326151,1718245854531,-500.0,0.00017534,2]
[329326152,1718245854543,-500.0,0.00017534,2]
[329326153,1718245854560,-500.0,0.00017534,2]
[329326154,1718245854578,-500.0,0.00017534,2]
[329326155,1718245854594,-2179.23,0.00017534,2]
[329326156,1718245854608,-500.0,0.00017534,2]
[329326157,1718245854622,-500.0,0.00017534,2]
[329326158,1718245854638,-1718.39,0.00017534,2]
[329326159,1718245854652,-822.56,0.00017534,2]
[329326160,1718245854667,-500.0,0.00017534,2]
[329326161,1718245854680,-1160.61,0.00017534,2]
[329326162,1718245854691,-981.58,0.00017534,2]
[329326163,1718245854704,-500.0,0.00017534,2]
[329326164,1718245854715,-1548.65,0.00017534,2]
[329326165,1718245854726,-2473.47,0.00017534,2]
[329326166,1718245854738,-628.25,0.00017534,2]
[329326167,1718245854755,-2886.59,0.00017534,2]
[329326168,1718245854767,-504.76488105,0.00017534,2]
[329326169,1718245854777,-500.0,0.00017534,2]
[329326170,1718245854789,-500.0,0.00017534,2]
[329326171,1718245854799,-500.0,0.00017534,2]
[329326172,1718245854811,-500.0,0.00017534,2]
[329326173,1718245854823,-500.0,0.00017534,2]
[329326174,1718245854836,-7479.87,0.00017534,2]
[329326175,1718245854849,-500.0,0.00017534,2]
[329326176,1718245854862,-320.32864345,0.00017534,2]
[329326177,1718245854874,-375.61125333,0.00017534,2]
[329326178,1718245854884,-908.59,0.00017534,2]
[329326179,1718245854895,-5026.05,0.00017534,2]
[329326180,1718245854907,-839.14,0.00017534,2]
[329326181,1718245854917,-188.56937721,0.00017534,2]
[329326182,1718245854936,-500.0,0.00017534,2]
[329326183,1718245854946,-500.0,0.00017534,2]
[329326184,1718245854956,-6873.16,0.00017534,2]
[329326185,1718245854967,-505.92601737,0.00017534,2]
[329326186,1718245854978,-1965.0,0.00017534,2]
[329326187,1718245854989,-500.0,0.00017534,2]
[329326188,1718245855000,-1901.3,0.00017534,2]
[329326189,1718245855016,-919.86,0.00017534,2]
[329326190,1718245855027,-824.95,0.00017534,2]
[329326191,1718245855042,-478.42201778,0.00017534,2]
[329326192,1718245855054,-500.0,0.00017534,2]
[329326193,1718245855070,-3378.5,0.00017534,2]
[329326194,1718245855122,-1096.18869873,0.00017706,2]
[329326195,1718245855144,-500.0,0.00017806,2]
[329326196,1718245855175,-700.1,0.00017806,2]
[329326197,1718245855193,-500.0,0.00017806,2]
[329326198,1718245855211,-700.1,0.00017807,2]
[329326199,1718245855223,-500.0,0.00017808,2]
[329326200,1718245855236,-739.29,0.00017808,2]
[329326201,1718245855254,-675.68,0.00017808,2]
[329326202,1718245855266,-610.76651783,0.00017808,2]
[329326203,1718245855283,-500.0,0.00017808,2]
[329326204,1718245855294,-500.0,0.00017808,2]
[329326205,1718245855305,-652.96,0.00017808,2]
[329326206,1718245855317,-500.0,0.00017808,2]
[329326207,1718245855331,-692.56,0.00017808,2]
[329326208,1718245855342,-500.0,0.00017808,2]
[329326209,1718245855354,-972.43,0.00017808,2]
[329326210,1718245855366,-694.9,0.00017808,2]
[329326211,1718245855376,-926.69,0.00017808,2]
[329326212,1718245855388,-500.0,0.00017808,2]
[329326213,1718245855407,-500.0,0.00017808,2]
[329326214,1718245855420,-500.0,0.00017808,2]
[329326215,1718245855432,-2179.23,0.00017808,2]
[329326216,1718245855442,-500.0,0.00017808,2]
[329326217,1718245855456,-500.0,0.00017808,2]
[329326218,1718245855474,-1718.39,0.00017808,2]
[329326219,1718245855490,-822.56,0.00017808,2]
[329326220,1718245855504,-500.0,0.00017808,2]
[329326221,1718245855516,-1160.61,0.00017808,2]
[329326222,1718245855527,-981.58,0.00017808,2]
[329326223,1718245855538,-500.0,0.00017808,2]
[329326224,1718245855549,-1548.65,0.00017808,2]
[329326225,1718245855559,-2473.47,0.00017808,2]
[329326226,1718245855569,-628.25,0.00017808,2]
[329326227,1718245855579,-2886.59,0.00017808,2]
[329326228,1718245855588,-500.0,0.00017808,2]
[329326229,1718245855599,-500.0,0.00017808,2]
[329326230,1718245855610,-500.0,0.00017808,2]
[329326231,1718245855621,-500.0,0.00017808,2]
[329326232,1718245855632,-176.22579761,0.00017808,2]
[329326233,1718245855645,-7479.87,0.00017808,2]
[329326234,1718245855656,-500.0,0.00017808,2]
[329326235,1718245855667,-908.59,0.00017808,2]
[329326236,1718245855678,-839.14,0.00017808,2]
[329326237,1718245855691,-5026.05,0.00017808,2]
[329326238,1718245855707,-500.0,0.00017808,2]
[329326239,1718245855719,-500.0,0.00017808,2]
[329326240,1718245855733,-6873.16,0.00017808,2]
[329326241,1718245855746,-1965.0,0.00017808,2]
[329326242,1718245855759,-1901.3,0.00017808,2]
[329326243,1718245855770,-919.86,0.00017808,2]
[329326244,1718245855780,-824.95,0.00017808,2]
[329326245,1718245855792,-500.0,0.00017808,2]
[329326246,1718245855804,-3378.5,0.00017808,2]
[329326247,1718245855817,-692.8,0.00017811,2]
[329326248,1718245855835,-700.1,0.00017899,2]
[329326249,1718245855851,-700.1,0.00017899,2]
[329326250,1718245855889,-700.1,0.00017899,2]
[329326251,1718245855914,-700.1,0.00017899,2]
[329326252,1718245855926,-700.16232979,0.00017899,2]
[329326253,1718245855937,-500.0,0.00017999,2]
[329326254,1718245855953,-500.0,0.00017999,2]
[329326255,1718245855964,-270.81004488,0.00017999,2]
[329326256,1718245855975,-500.0,0.00017999,2]
[329326257,1718245855990,-500.0,0.00017999,2]
[329326258,1718245856001,-500.0,0.00017999,2]
[329326259,1718245856012,-16533.41357496,0.00018,2]
[329326260,1718245856148,-7242.200015,0.00018,2]
[329326261,1718245856493,-597.49,0.00017534,2]
[329326262,1718245856509,-597.49,0.00017808,2]
[329326263,1718245856520,-46307.42526549,0.00018,2]
[329326264,1718245856532,-876.95081653,0.00018,2]
[329326265,1718245856544,-1355.76865896,0.00018,2]
[329326266,1718245856557,-31896.92727391,0.00018,2]
[329326267,1718245856573,-2765.7597697,0.00018,2]
[329326268,1718245856586,-151.0,0.00018,2]
[329326269,1718245856597,-151.839755,0.00018,2]
[329326270,1718245856607,-151.0,0.00018,2]
[329326271,1718245856619,-151.0,0.00018,2]
[329326272,1718245856629,-152.675532,0.00018,2]
[329326273,1718245856640,-151.0,0.00018,2]
[329326274,1718245856650,-151.0,0.00018,2]
[329326275,1718245856665,-692.8,0.0001801,2]
[329326276,1718245856683,-598.02034989,0.00018082,2]
[329326277,1718245856701,-739.29,0.00018082,2]
[329326278,1718245856718,-675.68,0.00018082,2]
[329326279,1718245856736,-500.0,0.00018082,2]
[329326280,1718245856753,-500.0,0.00018082,2]
[329326281,1718245856764,-652.96,0.00018082,2]
[329326282,1718245856774,-500.0,0.00018082,2]
[329326283,1718245856785,-692.56,0.00018082,2]
[329326284,1718245856795,-500.0,0.00018082,2]
[329326285,1718245856806,-972.43,0.00018082,2]
[329326286,1718245856817,-694.9,0.00018082,2]
[329326287,1718245856830,-926.69,0.00018082,2]
[329326288,1718245856840,-500.0,0.00018082,2]
[329326289,1718245856850,-549.70490181,0.00018082,2]
[329326290,1718245856861,-500.0,0.00018082,2]
[329326291,1718245856871,-2179.23,0.00018082,2]
[329326292,1718245856881,-500.0,0.00018082,2]
[329326293,1718245856891,-500.0,0.00018082,2]
[329326294,1718245856902,-1718.39,0.00018082,2]
[329326295,1718245856912,-822.56,0.00018082,2]
[329326296,1718245856923,-500.0,0.00018082,2]
[329326297,1718245856934,-1160.61,0.00018082,2]
[329326298,1718245856945,-981.58,0.00018082,2]
[329326299,1718245856957,-500.0,0.00018082,2]
[329326300,1718245856968,-1548.65,0.00018082,2]
[329326301,1718245856978,-2473.47,0.00018082,2]
[329326302,1718245856989,-628.25,0.00018082,2]
[329326303,1718245856999,-2886.59,0.00018082,2]
[329326304,1718245857009,-500.0,0.00018082,2]
[329326305,1718245857019,-516.98893118,0.00018082,2]
[329326306,1718245857030,-197.0,0.00018082,2]
[329326307,1718245857040,-500.0,0.00018082,2]
[329326308,1718245857051,-153.351459,0.00018082,2]
[329326309,1718245857061,-500.0,0.00018082,2]
[329326310,1718245857071,-151.0,0.00018082,2]
[329326311,1718245857082,-7479.87,0.00018082,2]
[329326312,1718245857110,-334.590273,0.00018082,2]
[329326313,1718245857125,-500.0,0.00018082,2]
[329326314,1718245857137,-334.590273,0.00018082,2]
[329326315,1718245857147,-908.59,0.00018082,2]
[329326316,1718245857158,-170.014436,0.00018082,2]
[329326317,1718245857170,-839.14,0.00018082,2]
[329326318,1718245857180,-5026.05,0.00018082,2]
[329326319,1718245857191,-500.0,0.00018082,2]
[329326320,1718245857204,-500.0,0.00018082,2]
[329326321,1718245857216,-6873.16,0.00018082,2]
[329326322,1718245857229,-1965.0,0.00018082,2]
[329326323,1718245857240,-151.0,0.00018082,2]
[329326324,1718245857253,-400.944242,0.00018082,2]
[329326325,1718245857263,-1901.3,0.00018082,2]
[329326326,1718245857274,-400.944242,0.00018082,2]
[329326327,1718245857285,-919.86,0.00018082,2]
[329326328,1718245857296,-824.95,0.00018082,2]
[329326329,1718245857308,-151.0,0.00018082,2]
[329326330,1718245857320,-226.606035,0.00018082,2]
[329326331,1718245857331,-500.0,0.00018082,2]
[329326332,1718245857350,-3378.5,0.00018082,2]
[329326333,1718245857362,-597.49,0.00018082,2]
[329326334,1718245857374,-692.8,0.00018209,2]
[329326335,1718245857384,-698.446409,0.00018275,2]
[329326336,1718245857395,-500.0,0.00018354,2]
[329326337,1718245857408,-739.29,0.00018356,2]